Cogmind - Beta 12 @@@ ROGUE MODE // 2023.11.21 @ 19:36:48 Player: Dosh Result: Destroyed by as-68129 with Assembled Rifle Performance ------------- Evolutions (0) 0 Regions Visited (3) 600 Robots Destroyed (31) 155 Value Destroyed (737) 737 Prototype IDs (0) 0 Alien Tech Used (0) 0 Bonus (0) 0 TOTAL SCORE: 1492 Bonus ------- None Cogmind --------- Core Integrity 0/250 Matter 202/300 Energy 100/100 System Corruption 6% Temperature Cool (0) Movement Core (350) Ox6 Location -10/Exiles Parts ------- > --- POWER (1) -------- (None) > --- PROPULSION (2) --- (None) > --- UTILITY (2) ------ Large Storage Unit > --- WEAPON (2) ------- (None) > --- INVENTORY (15) --- Ion Engine Fission Core Light Treads Light Treads Flight Unit Improved Flight Unit Improved Flight Unit Improved Flight Unit Small Storage Unit Sensor Array Signal Interpreter ECM Suite Light Cannon Mining Claw Stasis Trap (100%) Peak State ------------ > --- POWER ------------ Light Nuclear Core > --- PROPULSION ------- Light Treads Light Treads > --- UTILITY ---------- Large Storage Unit Visual Processing Unit > --- WEAPON ----------- Assault Rifle Light Cannon > --- INVENTORY -------- Ion Engine Light Ion Engine Light Treads Light Treads Flight Unit Improved Flight Unit Improved Flight Unit Improved Flight Unit Small Storage Unit Sensor Array Signal Interpreter ECM Suite Grenade Launcher Mining Claw [Rating: 12] Favorites ----------- Power Light Nuclear Core Engine Ion Engine Power Core Light Nuclear Core Propulsion Light Treads Treads Light Treads Utility Large Storage Unit Storage Large Storage Unit Processor Visual Processing Unit Protection Light Armor Plating Weapon Assault Rifle Energy Gun EM Pulse Gun Ballistic Gun Assault Rifle Ballistic Cannon Light Cannon Launcher Grenade Launcher Build | -11 -10 -10 -10 ------- Run | Jun Mat Min Exi Slots Evolved . | . . . . Power . | . . . . Propulsion . | . . . . Utility . | . . . . Weapon . | . . . . Parts Attached 23 | 7 11 5 . Power 5 | 1 2 2 . Engine 3 | 1 1 1 . Core 2 | . 1 1 . Reactor . | . . . . Propulsion 4 | 2 2 . . Treads 4 | 2 2 . . Leg . | . . . . Wheel . | . . . . Hover . | . . . . Flight . | . . . . Utility 8 | 1 5 2 . Device . | . . . . Storage 5 | 1 4 . . Processor 1 | . 1 . . Hackware . | . . . . Protection 2 | . . 2 . Artifact . | . . . . Weapon 6 | 3 2 1 . Energy Gun 1 | 1 . . . Energy Cannon . | . . . . Ballistic Gun 2 | 2 . . . Ballistic Cannon 2 | . 2 . . Launcher 1 | . . 1 . Special Weapon . | . . . . Impact Weapon . | . . . . Slashing Weapon . | . . . . Piercing Weapon . | . . . . Special Melee Weapon . | . . . . Unidentified Prototypes . | . . . . Parts Lost 7 | . . 2 5 Power 1 | . . . 1 Propulsion 2 | . . . 2 Utility 2 | . . 1 1 Weapon 2 | . . 1 1 Highest Loss Streak 5 | . . 1 5 To Critical Strikes . | . . . . Average Slot Usage (%) 96 | . 97 95 85 Engine 4 | . 4 2 14 Core 9 | . 9 11 . Treads 27 | . 27 28 28 Storage 13 | . 13 14 14 Processor 9 | . 13 1 . Protection 3 | . . 11 14 Ballistic Gun 14 | . 19 . . Ballistic Cannon 8 | . 7 11 . Launcher 3 | . . 13 14 Naked Turns . | . . . . Heaviest Build 89 | 14 89 34 33 Greatest Support 40 | 40 40 40 40 Greatest Overweight (x) 2 | . 2 . 1 Average Overweight (x) . | . . . . Largest Inventory Capacity 25 | 8 25 15 15 Average Capacity 13 | 7 12 15 15 Most Carried 15 | 4 14 15 15 Average Carried 10 | 2 9 13 15 Final Capacity 15 | 8 15 15 15 Final Carried 15 | 4 14 15 15 Class Distribution -------------------- 100% | Mutant Dominant Class ---------------- Mutant | -10/Materials Mutant | -10/Mines Mutant | -10/Exiles Resources | -11 -10 -10 -10 ----------- Run | Jun Mat Min Exi Matter Collected 898 | 170 641 87 . Remotely . | . . . . Salvage Created 879 | . 755 124 . Parts 68 | . 56 12 . Haulers Intercepted 1 | . 1 . . Recyclers Shooed 1 | . 1 . . Parts Field Recycled . | . . . . Retrieved Matter . | . . . . Parts Self-Destructed . | . . . . Prevented . | . . . . Kills | -11 -10 -10 -10 ------- Run | Jun Mat Min Exi Combat Hostiles Destroyed 24 | . 17 7 . Guns 13 | . 13 . . Cannons 7 | . 4 3 . AOE 4 | . . 4 . Classes Destroyed 7 | . 5 2 . Tunneler 1 | . . 1 . Hauler 1 | . 1 . . Recycler 2 | . 2 . . Watcher 3 | . 3 . . Swarmer 9 | . 6 3 . Grunt 13 | . 11 2 . Sentry 2 | . . 2 . Best Kill Streak 5 | . 5 4 . Combat Bots Only 5 | . 5 3 . Max Kills in Single Turn 4 | . 1 4 . Gunslinging . | . . . . Exploded 2 | . . 2 . Melee . | . . . . Uniques/NPCs Destroyed . | . . . . Combat | -11 -10 -10 -10 -------- Run | Jun Mat Min Exi Damage Taken 1388 | . 617 409 362 Core 251 | . 75 41 135 Absorbed by Shields . | . . . . Redirected to Shielding 55 | . . . 55 Regen/Repaired (Parts) 236 | . 236 . . Core Remaining (%) 100 | 100 . . . Volleys Fired 82 | . 68 14 . Largest 2 | . 2 2 . Hottest 65 | . 55 65 . Shots Fired 146 | . 121 24 1 Gun 94 | . 93 1 . Cannon 43 | . 28 15 . Launcher 9 | . . 8 1 Special . | . . . . Kinetic 137 | . 121 16 . Thermal . | . . . . Explosive 9 | . . 8 1 Electromagnetic . | . . . . Robot Hit Streak 13 | . 7 13 . Robot Miss Streak 3 | . 3 1 1 Penetration Max . | . . . . Secondary Targets 1 | . 1 . . Max Gunslinging Chain 1 | . 1 . . Shots Hit Robots 94 | . 73 21 . Core Hits 50 | . 36 14 . Critical Kills . | . . . . Critical Parts Destroyed . | . . . . Critical Strikes 1 | . . 1 . Blast 1 | . . 1 . Melee Attacks . | . . . . Impact . | . . . . Slashing . | . . . . Piercing . | . . . . Sneak Attacks . | . . . . Combat Hostiles . | . . . . Follow-up Attacks . | . . . . Damage Inflicted 1638 | . 1040 595 3 Guns 792 | . 781 11 . Cannons 474 | . 244 230 . Explosions 357 | . . 354 3 Melee . | . . . . Ramming 15 | . 15 . . Kinetic 1266 | . 1025 241 . Thermal . | . . . . Explosive 357 | . . 354 3 Electromagnetic . | . . . . Impact . | . . . . Slashing . | . . . . Piercing . | . . . . Highest Corruption 6 | . 6 6 6 Average Corruption 5 | . 5 6 6 Corruption Purged . | . . . . Corruption Blocked . | . . . . Effects 52 | . 36 14 2 Message Errors 8 | . 6 1 1 Matter Fused 8 | . 7 1 . Heat Flow Errors 9 | . 5 4 . Energy Discharges 11 | . 5 6 . Parts Rejected 2 | . 2 . . Parts Fused 2 | . 2 . . Data Loss (minor) 7 | . 6 1 . Data Loss (major) 1 | . 1 . . Misfires 3 | . 1 1 1 Alerts 1 | . 1 . . Overload Shots . | . . . . Overflow Damage . | . . . . Projectiles . | . . . . Explosions . | . . . . Melee . | . . . . Knockbacks 4 | . 4 . . Impact . | . . . . Kinetic 4 | . 4 . . Secondary . | . . . . Self-Inflicted Damage . | . . . . Shots . | . . . . Rammed 5 | . 5 . . Targets Rammed 5 | . 5 . . Kicked . | . . . . Crushed . | . . . . Highest Temperature 283 | . 279 283 . Average Temperature 82 | . 67 99 . Received Heat Transfer 468 | . 285 183 . Siege Activations . | . . . . Robots Corrupted . | . . . . Combat Hostiles . | . . . . Parts Fried . | . . . . Impact Corruptions . | . . . . Robots Melted . | . . . . Combat Hostiles . | . . . . Parts Melted . | . . . . Heat Transferred . | . . . . Parts Sabotaged . | . . . . Parts Stolen . | . . . . Parts Stripped . | . . . . Power Chain Reactions . | . . . . Missiles Intercepted . | . . . . Alert | -11 -10 -10 -10 ------- Run | Jun Mat Min Exi Peak Influence 179 | . 171 179 . Initial 28 | . . 28 . Average 81 | . 73 116 . Maximum Alert Level . | . . . . Low Security (%) 100 | 100 100 100 . Level 1 . | . . . . Level 2 . | . . . . Level 3 . | . . . . Level 4 . | . . . . Level 5 . | . . . . High Security . | . . . . Max Security . | . . . . Squads Dispatched 4 | . 4 . . Investigation 3 | . 3 . . Extermination . | . . . . Reinforcement 1 | . 1 . . Assault . | . . . . Garrison . | . . . . Intercept . | . . . . Searches Triggered . | . . . . Construction Impeded . | . . . . Haulers Reinforced . | . . . . Active Scanning Responses . | . . . . Cargo Convoy Interrupts . | . . . . Stealth | -11 -10 -10 -10 --------- Run | Jun Mat Min Exi Distress Signals . | . . . . Communications Jammed . | . . . . Distress Signals . | . . . . Times Spotted 37 | . 22 7 8 Peak Tracking Total 9 | . 4 2 9 Tactical Retreats 1 | . 1 . . Traps | -11 -10 -10 -10 ------- Run | Jun Mat Min Exi Traps Triggered 5 | . 5 . . Indirectly . | . . . . Trap Hack Attempts . | . . . . Triggered . | . . . . Disarmed . | . . . . Reprogrammed . | . . . . Reused . | . . . . Traps Extracted . | . . . . Installed . | . . . . Triggered . | . . . . Most Traps Carried 1 | . . 1 1 Machines | -11 -10 -10 -10 ---------- Run | Jun Mat Min Exi Machines Disabled 4 | . 1 1 2 Max in Single Turn 2 | . 1 1 2 Machines Repaired . | . . . . Machines Sabotaged . | . . . . Overloaded Fab Kills . | . . . . Hacking | -11 -10 -10 -10 --------- Run | Jun Mat Min Exi Machines Accessed 6 | . 6 . . Terminals 3 | . 3 . . Fabricators . | . . . . Repair Stations 1 | . 1 . . Recycling Units 2 | . 2 . . Scanalyzers . | . . . . Garrison Access . | . . . . Total Hacks 12 | . 12 . . Successful 8 | . 8 . . Failed 4 | . 4 . . Catastrophic . | . . . . Database Lockouts . | . . . . Manual . | . . . . Terminals 4 | . 4 . . Fabricators . | . . . . Repair Stations 4 | . 4 . . Recycling Units 4 | . 4 . . Scanalyzers . | . . . . Garrison Access . | . . . . Terminal Hacks 2 | . 2 . . Record 1 | . 1 . . Emergency Access Points 1 | . 1 . . Fabricator Hacks . | . . . . Repair Station Hacks 4 | . 4 . . Scan Component 2 | . 2 . . Repair 2 | . 2 . . Recycling Unit Hacks 2 | . 2 . . Retrieve Components 2 | . 2 . . Scanalyzer . | . . . . Garrison Access Hacks . | . . . . Unauthorized Hacks . | . . . . Terminals . | . . . . Fabricators . | . . . . Repair Stations . | . . . . Recycling Units . | . . . . Scanalyzers . | . . . . Garrison Access . | . . . . Data Cores Recovered . | . . . . Used . | . . . . Hacking Detections 4 | . 4 . . Full Trace Events 1 | . 1 . . Feedback Events . | . . . . Feedback Blocked . | . . . . Robot Schematics Acquired . | . . . . Robots Built . | . . . . Authchips . | . . . . Time . | . . . . Total Robot Build Rating . | . . . . Part Schematics Acquired . | . . . . Parts Built . | . . . . Authchips . | . . . . Time . | . . . . Total Part Build Rating . | . . . . Parts Repaired 2 | . 2 . . Time 52 | . 52 . . Parts Recycled . | . . . . Recycled Matter . | . . . . Retrieved Matter . | . . . . Retrieved Components 19 | . 19 . . Parts Scanalyzed . | . . . . Part Schematics Acquired . | . . . . Parts Damaged . | . . . . Bothacking | -11 -10 -10 -10 ------------ Run | Jun Mat Min Exi Used RIF Installer . | . . . . Robots Hacked . | . . . . Non-combat . | . . . . Combat . | . . . . Robot Hacks Applied . | . . . . Relay Couplers Released . | . . . . Fabnet Peak Effective % . | . . . . Robots Rewired . | . . . . Allies Hacked . | . . . . Hacks Repelled . | . . . . Allies | -11 -10 -10 -10 -------- Run | Jun Mat Min Exi Total Allies . | . . . . Largest Group . | . . . . Highest-Rated Group . | . . . . Highest-Rated Ally . | . . . . Total Orders . | . . . . Ally Attacks . | . . . . Total Damage . | . . . . Kills . | . . . . Allies Corrupted . | . . . . Allies Melted . | . . . . Intel | -11 -10 -10 -10 ------- Run | Jun Mat Min Exi Robot Analysis Total . | . . . . Derelict Logs Recovered 1 | . . 1 . Drone Launches . | . . . . Drone Recoveries . | . . . . Exploration | -11 -10 -10 -10 ------------- Run | Jun Mat Min Exi Turns Passed 2677 | 81 1867 655 74 Spaces Moved 1448 | 45 978 379 46 Core 4 | 4 . . . Treads 1444 | 41 978 379 46 Legs . | . . . . Wheels . | . . . . Hover . | . . . . Flight . | . . . . Fastest Speed 50 | 50 160 160 160 Average Speed 159 | 150 160 160 161 Slowest Speed 320 | 160 320 160 240 Overloaded Moves . | . . . . Propulsion Burnouts . | . . . . Robots Hopped . | . . . . Cave-ins Triggered . | . . . . Exploration Rate (%) 46 | 4 97 73 10 Regions Visited 3 Branch Regions 2 Pre-discovered Areas 1 | . . 1 . Known Exits Taken . | . . . . Unknown Exits Taken 3 | 1 1 1 . Scrap Searched 2 | . . 2 . Spaces Dug . | . . . . Terrain Destroyed 33 | . . 23 10 Melee . | . . . . Projectile . | . . . . AOE 33 | . . 23 10 Terrain Rammed . | . . . . Walls Destroyed . | . . . . Machines Disabled . | . . . . Actions | -11 -10 -10 -10 --------- Run | Jun Mat Min Exi Total 1661 | 56 1153 404 48 Wait 74 | . 71 3 . Move 1445 | 44 977 378 46 Hop . | . . . . Pick Up 21 | 4 15 1 1 Fast Attach 15 | 6 6 3 . Attach 4 | 1 2 1 . Detach 4 | 1 1 2 . Swap 4 | . 3 1 . Drop 7 | . 5 1 1 Fire 82 | . 68 14 . Melee . | . . . . Ram . | . . . . Kick . | . . . . Crush 5 | . 5 . . Escape Stasis . | . . . . Rewire . | . . . . Trap . | . . . . Miscellaneous . | . . . . Route ------- -11/Junkyard -10/Materials (discovered 4 exits: [*Mat x3] / [*Min]) -10/Mines -10/Exiles History --------- Turn | Location | Event 24 | -11/Junkyard | Discovered new exit (range 15) 82 | -11/Junkyard | Entered Materials 310 | -10/Materials | Build established: Mutant 596 | -10/Materials | Discovered new exit (range 7) 610 | -10/Materials | Discovered new exit (range 13) 1028 | -10/Materials | Discovered new exit (range 4) 1425 | -10/Materials | Repaired Lgt. Treads 1453 | -10/Materials | Repaired Lgt. Treads 1574 | -10/Materials | Discovered new exit (range 11) 1949 | -10/Materials | Entered Mines 1988 | -10/Mines | Met a Derelict bent on vengeance 2077 | -10/Mines | Learned location of Zion (-7) 2331 | -10/Mines | Found a hidden stash of uninstalled traps 2594 | -10/Mines | Deemed a non-threat by the Exiles lab entrance 2596 | -10/Mines | Discovered new exit (range 5) 2604 | -10/Mines | Entered Exiles 2655 | -10/Exiles | Met 8R-AWN 2659 | -10/Exiles | Attacked by the Exiles 2666 | -10/Exiles | Core integrity fell below 50% 2678 | -10/Exiles | Core integrity fell below 20% 2678 | -10/Exiles | Destroyed by as-68129 with Assembled Rifle Last Messages --------------- 02670_ HV Slug penetrates as-81956. 02670_ as-81956 suffers critical hit (Destroy). 02670_ as-81956 destroyed. 02670_ HV Slug penetrates Machine. 02672_ Penetrated by HV Slug. 02672_ HV Slug penetrates Wall. 02672_ Penetrated by HV Slug. 02672_ HV Slug penetrates Wall. 02674_ Lgt. Angular Momentum Engine destroyed. 02674_ Grenade Launcher destroyed. 02675_ Penetrated by HV Slug. 02675_ HV Slug penetrates Wall. 02675_ Penetrated by HV Slug. 02675_ HV Slug penetrates Wall. 02676_ Lgt. Treads destroyed. 02677_ Rigged Lgt. Fission Core explodes. 02677_ Propulsion Shielding destroyed. 02677_ Lgt. Treads destroyed. 02677_ Machine disabled. 02678_ Penetrated by HV Slug. Map ----- +----------------------------------------------------+ | ?????????????????????????????????????????????????? | | ?????????????????????????????????????????????????? | | ?????????????????????????????????????????????????? | | ?????????????????????????????????????????????????? | | ?????????????????????????????????????????????????? | | ?????????????????????????????????????????????????? | | ?????????????????????????????????????????????????? | | ?????????????????????????????????????????????????? | | ?????????????????????????????????????????????????? | | ?????????????????????????????????????????????????? | | ?????????????????????????????????????????????????? | | ?????????????????????????????????????????????????? | | ?????????????????????????????????????????????????? | | ????????????????????????????????????? ?????????? | | ????????????????????????????????????# #????????? | | ??????????????????????????????????## ##???????? | | ???????????????####???????????????# #???????? | | ????????????#### ???????????????# #???????? | | ????????????# ??????????????## ????????? | | ????????????# ##????????????## #?????????? | | ????????????# #????????????# #?????????? | | ??????????### ###????????### #??????????? | | ??????????# ########## #??????????? | | ?????????## a ag a# ;# #???????????? | | ?????????# a% * ##??????????? | | ???? ## a a@ #??????????? | | ????????????????## ##?????????? | | ????????????????#" ;;;; ###???????? | | ????????????????####### ##### ###?????? | | ??????????????????????# #???##### * ##????? | | ??????????????????????###???????### #????? | | ??????????????????????????????????### #????? | | ????????????????????????????????????### #????? | | ?????????????????????????????????????#" ##???? | | ?????????????????????????????????????#### ###?? | | ????????????????????????????????????????# ##? | | ????????????????????????????????????????## ## | | ?????????????????????????????????????????### | | ???????????????????????????????????????????# # | | ???????????????????????????????????????????## ## | | ????????????????????????????????????????????#####? | | ?????????????????????????????????????????????????? | | ?????????????????????????????????????????????????? | | ?????????????????????????????????????????????????? | | ?????????????????????????????????????????????????? | | ?????????????????????????????????????????????????? | | ?????????????????????????????????????????????????? | | ?????????????????????????????????????????????????? | | ?????????????????????????????????????????????????? | | ?????????????????????????????????????????????????? | +----------------------------------------------------+ Best States ------------- Heat Dissipation 25 Energy Generation 18 Energy Capacity 250 Matter Stores 300 Matter Capacity 300 Sight Range 18 Terrain Scan Density 10 Armor Coverage 150 Propulsion Shielding 33 Evasion (%) 40 Recoil Reduction 2 Item Schematics ----------------- None Robot Schematics ------------------ None Fabricated ------------ Nothing Alien Tech Used ----------------- None Achievements -------------- None Challenges ------------ None Game ------ Seed TransmissionCooledCompactor Manual? 0 Play Time 00:14:26 Cumulative 15.9 hours Start 2023.11.21 @ 19:21:42 End 2023.11.21 @ 19:36:48 Sessions 1 Manual Loads 0 Difficulty Rogue Special Mode None Game No. 38 Rogue 38 Adventurer 0 Explorer 0 Win Type - Total 0 Types 0/0/0/0/0/0/0/0/0 Lore% 20 Gallery% 21 Achievement% 18 Wizard Run 0 Options --------- ASCII 0 Keyboard 1 Movement Numpad Keybinds 0 Fullscreen 2 Font 18/SmallcapsGlow Map View 76x50 Tactical HUD 1 Map Filters NONE Filters NONE Steam 1 RUN: 737d197a-71a7-4deb-a1a2-864d00ae66d1